bitfinex/quotes_SOLUSD_20250125
["timestamp","ask_amount","ask_price","bid_price","bid_amount"]
[1737826080917,5.4689,255.75,255.58,23.776884]
[1737826081339,20.0,255.72,255.58,23.776884]
[1737826081543,6.4689,255.75,255.58,23.776884]
[1737826081745,1.5589,255.75,255.58,0.3826114]
[1737826081946,1.5589,255.75,255.58,20.3826114]
[1737826082243,1.5589,255.75,255.59,23.776884]
[1737826082438,1.5589,255.75,255.6,0.38258549]
[1737826082633,1.5589,255.75,255.62,20.0]
[1737826082825,1.5589,255.75,255.73,24.24695183]
[1737826084926,1.6016,255.84,255.71,24.24695183]
[1737826085142,1.6016,255.84,255.72,24.15932934]
[1737826085342,11.9241,255.84,255.72,24.15932934]
[1737826085720,1.6016,255.84,255.72,24.15932934]
[1737826086541,20.0,255.83,255.71,24.24695183]
[1737826086840,20.0,255.81,255.69,24.24695183]
[1737826087343,3.9088,255.83,255.69,24.24695183]
[1737826087554,3.9088,255.83,255.7,0.38243592]
[1737826087756,3.9088,255.83,255.69,24.24695183]
[1737826087962,20.0,255.81,255.69,24.24695183]
[1737826088623,20.0,255.81,255.7,0.38244843]
[1737826088824,0.03,255.84,255.75,24.24695183]
[1737826090363,0.03,255.84,255.68,25.24695183]
[1737826090758,13.7103,255.84,255.68,25.24695183]
[1737826090991,20.0,255.81,255.68,25.24695183]
[1737826091273,20.0,255.81,255.69,1.0]
[1737826091570,20.0,255.81,255.7,1.0]
[1737826092260,13.7103,255.84,255.72,1.0]
[1737826092461,9.8017,255.84,255.72,1.0]
[1737826092665,0.03,255.84,255.74,1.0]
[1737826092846,0.03,255.84,255.75,23.776884]
[1737826093043,0.03,255.84,255.76,1.0]
[1737826093242,0.03,255.84,255.72,1.0]
[1737826093443,0.03,255.84,255.73,1.0]
[1737826093860,20.0,255.83,255.7,24.24695183]
[1737826094049,20.0,255.83,255.71,1.0]
[1737826094457,0.03,255.84,255.71,1.0]
[1737826094662,13.6813,255.82,255.71,1.0]
[1737826094859,13.6813,255.82,255.7,24.24695183]
[1737826095160,13.6813,255.82,255.67,25.24695183]
[1737826095376,13.6813,255.82,255.69,1.0]
[1737826095970,13.6813,255.82,255.67,26.24695183]
[1737826096146,13.6813,255.82,255.67,25.24695183]
[1737826096464,20.0,255.79,255.67,24.24695183]
[1737826096644,13.6836,255.78,255.67,24.24695183]
[1737826096963,13.6836,255.78,255.65,2.0]
[1737826097272,13.6836,255.78,255.69,1.0]
[1737826097880,9.774,255.78,255.66,1.0]
[1737826098273,19.09551753,255.69,255.67,1.0]
[1737826099067,23.00661753,255.69,255.67,1.0]
[1737826099263,19.09551753,255.7,255.67,1.0]
[1737826099469,1.5781919,255.82,255.69,1.0]
[1737826099470,19.09551753,255.72,255.69,1.0]
[1737826099664,19.09551753,255.72,255.67,23.776884]
[1737826100075,19.09551753,255.7,255.64,2.0]
[1737826100453,19.09551753,255.7,255.64,25.776884]
[1737826100779,19.09551753,255.7,255.69,0.063]
[1737826101080,22.61521753,255.7,255.69,0.063]
[1737826102573,3.5197,255.7,255.69,0.063]
[1737826103374,3.5197,255.7,255.6,1.0]
[1737826103691,19.09551753,255.63,255.62,1.0]
[1737826103858,19.09551753,255.63,255.58,24.86904465]
[1737826104180,19.09551753,255.61,255.6,1.0]
[1737826104983,3.5208,255.62,255.58,1.0]
[1737826105176,19.09551753,255.59,255.58,1.0]
[1737826105366,3.5208,255.62,255.58,1.0]
[1737826105676,19.09551753,255.65,255.61,1.0]
[1737826106756,19.09551753,255.63,255.59,1.0]
[1737826107195,22.61621753,255.63,255.59,1.0]
[1737826108498,19.09551753,255.65,255.59,2.0]
[1737826108685,3.5203,255.66,255.63,1.0]
[1737826109277,19.09551753,255.65,255.63,1.0]
[1737826109671,11.93780514,255.65,255.63,1.0]
[1737826110184,11.93780514,255.67,255.63,1.0]
[1737826110487,11.93780514,255.71,255.65,1.0]
[1737826110860,11.93780514,255.73,255.67,1.0]
[1737826111065,11.93780514,255.75,255.69,1.0]
[1737826111787,19.08734339,255.75,255.69,1.0]
[1737826111988,19.08734339,255.77,255.69,2.0]
[1737826112284,19.08734339,255.77,255.68,23.776884]
[1737826112285,19.08734339,255.79,255.74,1.0]
[1737826112492,19.08734339,255.77,255.72,1.0]
[1737826113368,19.08734339,255.79,255.75,1.0]
[1737826113582,19.08734339,255.79,255.73,24.776884]
[1737826113782,19.08734339,255.79,255.74,1.0]
[1737826114182,19.08734339,255.79,255.73,24.776884]
[1737826114383,19.08734339,255.79,255.73,25.776884]
[1737826114972,22.21484339,255.79,255.73,25.776884]
[1737826115467,19.08734339,255.79,255.73,25.776884]
[1737826116399,19.08734339,255.81,255.77,1.0]
[1737826116602,19.08734339,255.81,255.76,1.0]
[1737826116892,19.08734339,255.79,255.73,24.776884]
[1737826117096,19.08734339,255.79,255.76,2.0]
[1737826117480,19.08734339,255.81,255.76,2.0]
[1737826117684,19.08734339,255.81,255.78,1.0]
[1737826117987,19.08734339,255.81,255.76,1.0]
[1737826118171,19.08734339,255.81,255.77,1.0]
[1737826118592,19.08734339,255.79,255.75,24.01849283]
[1737826118775,19.08734339,255.77,255.75,24.01849283]
[1737826118976,22.21524339,255.77,255.75,24.01849283]
[1737826119195,19.08734339,255.81,255.75,25.01849283]
[1737826119690,19.08734339,255.82,255.75,25.01849283]
[1737826119896,19.08734339,255.82,255.79,24.01849283]
[1737826120300,19.08734339,255.82,255.79,25.01849283]
[1737826121096,19.08734339,255.82,255.79,24.01849283]
[1737826121582,21.82364339,255.82,255.79,24.01849283]
[1737826122588,19.08734339,255.8,255.79,24.01849283]
[1737826122779,19.08734339,255.8,255.77,36.02773924]
[1737826124496,21.82384339,255.8,255.77,36.02773924]
[1737826124703,19.08734339,255.78,255.77,36.02773924]
[1737826125691,21.82404339,255.78,255.77,36.02773924]
[1737826126686,21.82404339,255.78,255.72,1.0]
[1737826126901,19.08734339,255.75,255.72,1.0]
[1737826127101,19.08734339,255.73,255.7,1.0]
[1737826127280,19.08734339,255.71,255.69,0.063]
[1737826127482,38.17468678,255.71,255.69,0.063]
[1737826127697,2.7375,255.7,255.69,0.063]
[1737826128401,2.7375,255.7,255.57,1.0]
[1737826128603,19.08734339,255.61,255.6,1.0]
[1737826128990,17.58734339,255.61,255.6,1.0]
[1737826129388,17.58734339,255.61,255.55,7.1215]
[1737826129598,19.08734339,255.59,255.55,7.1215]
[1737826129901,19.08734339,255.59,255.58,48.85333422]
[1737826130406,19.08734339,255.6,255.58,48.85333422]
[1737826130605,19.08734339,255.64,255.59,1.0]
[1737826130905,19.08734339,255.62,255.58,48.85333422]
[1737826131093,19.08734339,255.6,255.58,48.85333422]
[1737826131295,19.08734339,255.6,255.58,73.35266793]
[1737826131799,11.94640666,255.59,255.58,73.35266793]
[1737826132107,11.94640666,255.59,255.58,48.85333422]
[1737826133209,23.89281332,255.59,255.5,1.0]
[1737826133392,11.94640666,255.51,255.5,1.0]
[1737826133594,11.94640666,255.51,255.49,1.0]
[1737826133786,19.12268774,255.51,255.49,1.0]
[1737826135084,19.12268774,255.55,255.52,23.776884]
[1737826135281,19.12268774,255.57,255.54,1.0]
[1737826135484,19.12268774,255.57,255.52,2.0]
[1737826136585,19.12268774,255.55,255.52,2.0]
[1737826137282,19.12268774,255.53,255.52,1.0]
[1737826137488,19.12268774,255.53,255.48,2.0]
[1737826137794,19.12268774,255.53,255.49,23.776884]
[1737826137995,19.12268774,255.53,255.5,1.0]
[1737826138193,21.86228774,255.51,255.48,1.0]
[1737826138399,19.12268774,255.49,255.44,1.063]
[1737826138710,19.12268774,255.49,255.46,2.0]
[1737826139001,19.12268774,255.51,255.5,1.0]
[1737826139205,19.12268774,255.55,255.52,1.0]
[1737826139502,19.12268774,255.55,255.51,23.776884]
[1737826139701,19.12268774,255.55,255.53,2.0]
[1737826140099,19.12268774,255.55,255.54,1.0]
[1737826140291,19.12268774,255.55,255.5,1.0]
[1737826140491,19.12268774,255.51,255.45,1.0]
[1737826140710,19.12268774,255.49,255.45,1.0]
[1737826141201,19.12268774,255.51,255.49,1.0]
[1737826142305,19.12268774,255.57,255.52,1.0]
[1737826142509,19.12268774,255.59,255.55,1.0]
[1737826142713,19.12268774,255.57,255.55,1.0]
[1737826143090,19.12268774,255.57,255.53,23.776884]
[1737826143091,19.12268774,255.57,255.53,24.776884]
[1737826143293,19.12268774,255.55,255.52,23.776884]
[1737826143496,19.12268774,255.53,255.51,1.0]
[1737826143701,19.12268774,255.53,255.48,1.0]
[1737826143909,19.12268774,255.51,255.46,1.0]
[1737826144090,19.12268774,255.49,255.44,1.063]
[1737826144294,19.12268774,255.51,255.48,1.0]
[1737826144490,19.12268774,255.51,255.48,2.0]
[1737826144794,21.86208774,255.53,255.5,1.0]
[1737826145205,19.12268774,255.51,255.47,23.776884]
[1737826146112,19.12268774,255.49,255.47,23.776884]
[1737826146508,19.12268774,255.49,255.44,1.063]
[1737826146687,19.12268774,255.47,255.44,1.063]
[1737826147117,19.12268774,255.47,255.45,24.776884]
[1737826147301,19.12268774,255.47,255.45,23.776884]
[1737826147494,19.12268774,255.47,255.44,1.063]
[1737826148517,19.12268774,255.49,255.47,23.776884]
[1737826148896,19.12268774,255.49,255.46,1.0]
[1737826150228,19.12268774,255.47,255.44,23.839884]
[1737826151112,19.12268774,255.47,255.46,1.0]
[1737826151420,4.61133268,255.57,255.47,1.0]
[1737826151421,19.12268774,255.49,255.47,1.0]
[1737826153618,21.86248774,255.49,255.45,1.0]
[1737826154293,21.86248774,255.49,255.44,23.839884]
[1737826154294,19.12268774,255.47,255.44,0.063]
[1737826154617,19.12268774,255.45,255.44,0.063]
[1737826155331,19.12268774,255.47,255.44,1.063]
[1737826155820,11.95549328,255.48,255.44,1.063]
[1737826156320,11.95549328,255.48,255.46,1.0]
[1737826157016,11.95549328,255.48,255.45,1.0]
[1737826158505,14.69539328,255.48,255.45,1.0]
[1737826158805,14.69539328,255.48,255.44,0.063]
[1737826159011,14.69539328,255.48,255.45,1.0]
[1737826159210,14.69539328,255.48,255.44,0.063]
[1737826159416,14.69539328,255.48,255.45,1.0]
[1737826159819,14.69539328,255.48,255.44,0.063]
[1737826160108,11.95549328,255.46,255.44,0.063]
[1737826160911,2.7402,255.45,255.44,0.063]
[1737826161906,11.95549328,255.46,255.44,0.063]
[1737826162106,14.69559328,255.46,255.44,0.063]
[1737826164836,11.95549328,255.46,255.44,1.063]
[1737826165327,11.95549328,255.46,255.44,0.063]
[1737826166620,1.57133268,255.57,255.56,1.0]
[1737826166822,0.03,255.61,255.58,1.0]
[1737826167208,11.72158217,255.61,255.54,1.0]
[1737826167413,11.69158217,255.57,255.54,1.0]
[1737826168135,11.69158217,255.59,255.56,1.0]
[1737826169627,11.69158217,255.59,255.58,1.0]
[1737826169805,11.72158217,255.61,255.58,1.0]
[1737826170616,11.72158217,255.61,255.58,2.0]
[1737826171037,0.03,255.61,255.58,2.0]
[1737826172838,0.03,255.61,255.6,2.0]
[1737826173535,0.03,255.61,255.6,25.776884]
[1737826177319,0.03,255.61,255.6,32.74397608]
[1737826178325,11.69158217,255.75,255.71,1.0]
[1737826179845,11.69158217,255.72,255.69,1.0]
[1737826180340,11.69158217,255.72,255.69,2.0]
[1737826180839,11.69158217,255.72,255.68,23.776884]
[1737826181236,11.69158217,255.72,255.69,2.0]
[1737826181632,26.8414,255.8,255.73,23.776884]
[1737826181633,11.69158217,255.74,255.73,23.776884]
[1737826181939,14.42868217,255.74,255.67,1.0]
[1737826182138,11.69158217,255.7,255.67,1.0]
[1737826182345,11.69158217,255.7,255.66,23.776884]
[1737826182924,11.69158217,255.7,255.68,23.776884]
[1737826184423,2.7375,255.71,255.68,24.776884]
[1737826184618,11.69158217,255.7,255.65,1.0]
[1737826184830,11.69158217,255.66,255.62,1.0]
[1737826185341,11.69158217,255.66,255.63,23.776884]
[1737826186143,10.69158217,255.68,255.64,1.0]
[1737826186649,13.42938217,255.68,255.64,2.0]
[1737826187157,10.69158217,255.68,255.65,23.776884]
[1737826187449,14.42918217,255.7,255.66,1.0]
[1737826187628,11.69158217,255.7,255.67,23.776884]
[1737826187944,14.42908217,255.7,255.67,23.776884]
[1737826188855,11.69158217,255.68,255.62,2.0]
[1737826189345,11.69158217,255.64,255.6,7.5845]
[1737826189643,11.69158217,255.66,255.63,1.0]
[1737826189862,11.69158217,255.68,255.63,1.0]
[1737826190549,11.69158217,255.68,255.61,24.776884]
[1737826190751,11.69158217,255.66,255.61,24.776884]
[1737826191083,11.69158217,255.66,255.61,23.776884]
[1737826191253,11.69158217,255.66,255.63,1.0]
[1737826191734,2.7372,255.73,255.64,24.776884]
[1737826191735,11.69158217,255.68,255.64,24.776884]
[1737826191936,11.72158217,255.7,255.65,1.0]
[1737826193345,11.69158217,255.68,255.65,1.0]
[1737826200160,0.03,255.7,255.69,23.776884]
[1737826200455,0.03,255.7,255.68,1.0]
[1737826201039,0.03,255.7,255.69,24.776884]
[1737826202357,0.03,255.7,255.69,31.21235567]
[1737826204050,0.03,255.7,255.69,30.829884]
[1737826205163,0.03,255.7,255.69,31.21234033]
[1737826205573,11.67766204,255.84,255.8,24.776884]
[1737826205753,14.41376204,255.84,255.8,24.776884]
[1737826205954,0.03,255.87,255.83,2.0]
[1737826205955,53.91766204,255.86,255.83,2.0]
[1737826206541,53.91766204,255.86,255.83,1.0]
[1737826206751,11.67766204,255.84,255.83,1.0]
[1737826206953,11.67766204,255.84,255.77,1.0]
[1737826207265,11.67766204,255.79,255.72,3.5308]
[1737826207461,11.67766204,255.74,255.68,2.0]
[1737826207648,11.67766204,255.71,255.68,1.0]
[1737826207839,11.67766204,255.71,255.66,1.063]
[1737826208045,11.67766204,255.67,255.66,0.063]
[1737826209463,11.67766204,255.67,255.58,0.063]
[1737826209464,20.0,255.64,255.58,0.063]
[1737826209662,11.67766204,255.59,255.58,0.063]
[1737826209977,11.67766204,255.63,255.6,1.0]
[1737826210182,11.67766204,255.65,255.62,2.0]
[1737826210460,11.67766204,255.65,255.64,1.0]
[1737826210846,11.67766204,255.65,255.63,23.776884]
[1737826211245,11.67766204,255.65,255.64,1.0]
[1737826211485,14.41556204,255.67,255.64,1.0]
[1737826212366,11.67766204,255.65,255.64,1.0]
[1737826212754,11.67766204,255.69,255.66,1.0]
[1737826213064,11.67766204,255.69,255.65,23.776884]
[1737826213239,11.67766204,255.67,255.65,23.776884]
[1737826213649,11.67766204,255.67,255.66,24.776884]
[1737826214564,11.67766204,255.67,255.66,23.776884]
[1737826215155,11.67766204,255.67,255.64,1.0]
[1737826215355,2.7378,255.68,255.65,0.063]
[1737826215557,11.67766204,255.66,255.65,0.063]
[1737826215758,9.5796,255.75,255.65,0.063]
[1737826215759,11.67766204,255.69,255.65,23.839884]
[1737826215944,11.67766204,255.69,255.68,25.776884]
[1737826216152,0.03,255.7,255.68,25.776884]
[1737826216543,0.03,255.7,255.69,23.776884]
[1737826216750,0.03,255.7,255.69,4.29336862]
[1737826217667,0.03,255.7,255.68,2.0]
[1737826219077,11.67766204,255.82,255.76,1.0]
[1737826219375,11.67766204,255.89,255.86,2.0]
[1737826220471,11.67766204,255.89,255.86,25.776884]
[1737826221259,11.67766204,255.99,255.96,1.0]
[1737826221457,36.8333,256.1,255.95,2.0]
[1737826221458,11.67766204,255.97,255.95,2.0]
[1737826221663,11.67766204,255.97,255.95,1.0]
[1737826222280,11.67766204,255.97,255.93,2.0]
[1737826222450,2.7342,256.02,255.95,1.0]
[1737826222655,29.5696,256.02,255.89,2.0]
[1737826222864,29.5696,256.02,255.89,1.0]
[1737826223064,29.5696,256.02,255.89,23.776884]
[1737826223261,29.5696,256.02,255.94,1.0]
[1737826223772,11.67766204,255.95,255.94,1.0]
[1737826223978,11.67766204,255.95,255.88,1.0]
[1737826224160,11.67766204,255.91,255.88,23.776884]
[1737826224359,11.67766204,255.91,255.89,1.0]
[1737826224559,11.66457992,255.92,255.89,1.0]
[1737826225091,14.39977992,255.92,255.89,1.0]
[1737826226085,11.66457992,255.92,255.91,1.0]
[1737826226388,11.66457992,255.92,255.77,1.0]
[1737826226389,11.66457992,255.92,255.85,2.0]
[1737826226558,11.66457992,255.87,255.85,1.0]
[1737826226871,11.66457992,255.87,255.86,23.776884]
[1737826227278,11.66457992,255.87,255.85,2.0]
[1737826227480,11.66457992,255.87,255.83,2.0]
[1737826227660,11.66457992,255.85,255.83,2.0]
[1737826228062,11.66457992,255.85,255.84,23.776884]
[1737826228369,2.736,255.84,255.75,1.0]
[1737826228574,11.66457992,255.76,255.73,2.0]
[1737826228765,11.66457992,255.74,255.73,1.0]
[1737826229279,11.66457992,255.74,255.73,24.776884]
[1737826229456,11.66457992,255.78,255.77,1.0]
[1737826229656,11.66457992,255.78,255.76,23.776884]
[1737826229969,11.67748841,255.77,255.75,1.0]
[1737826230282,11.67748841,255.77,255.73,2.0]
[1737826230790,11.67748841,255.75,255.74,23.776884]
[1737826230960,11.67748841,255.75,255.73,2.0]
[1737826231165,11.67748841,255.75,255.71,1.0]
[1737826231365,11.67748841,255.71,255.69,1.0]
[1737826231896,11.67748841,255.73,255.72,1.0]
[1737826232092,11.67748841,255.77,255.74,1.0]
[1737826232379,11.67748841,255.75,255.71,1.0]
[1737826232607,11.67748841,255.73,255.68,1.0]
[1737826232883,11.67748841,255.71,255.68,1.0]
[1737826233062,11.67748841,255.71,255.7,25.776884]
[1737826233267,11.67748841,255.73,255.7,25.776884]
[1737826233569,11.67748841,255.73,255.72,1.0]
[1737826233880,11.67748841,255.73,255.72,2.0]
[1737826234083,11.67748841,255.73,255.72,25.776884]
[1737826234282,9.5769,255.82,255.74,2.0]
[1737826234283,11.67748841,255.75,255.74,2.0]
[1737826235590,11.67748841,255.77,255.76,1.0]
[1737826236275,11.67748841,255.77,255.76,2.0]
[1737826236489,11.67748841,255.77,255.76,1.0]
[1737826236998,11.67748841,255.77,255.74,1.0]
[1737826237175,11.67748841,255.75,255.74,1.0]
[1737826237488,11.67748841,255.75,255.74,2.0]
[1737826237985,11.67748841,255.77,255.74,2.0]
[1737826238373,11.67748841,255.77,255.76,1.0]
[1737826238881,11.67748841,255.79,255.76,2.0]
[1737826239195,11.67748841,255.79,255.78,2.0]
[1737826240083,11.67748841,255.81,255.8,1.0]
[1737826240288,11.67748841,255.81,255.8,2.0]
[1737826240893,11.67748841,255.83,255.82,1.0]
[1737826242285,11.67748841,255.85,255.84,1.0]
[1737826242693,11.67748841,255.85,255.84,2.0]
[1737826242891,11.67748841,255.85,255.82,2.0]
[1737826243092,11.67748841,255.83,255.82,1.0]
[1737826243997,11.67748841,255.83,255.82,25.776884]
[1737826245387,11.67748841,255.83,255.82,2.0]
[1737826246098,2.7361,255.84,255.82,2.0]
[1737826246290,11.67748841,255.85,255.84,1.0]
[1737826246497,11.67748841,255.85,255.84,2.0]
[1737826246797,11.67748841,255.85,255.84,25.776884]
[1737826246986,11.70748841,255.87,255.84,25.776884]
[1737826247182,11.70748841,255.87,255.86,2.0]
[1737826247778,0.03,255.87,255.86,25.776884]
[1737826248497,0.03,255.87,255.84,1.0]
[1737826248800,0.03,255.87,255.8,1.0]
[1737826248801,11.67748841,255.85,255.8,1.0]
[1737826249009,0.03,255.87,255.82,1.0]
[1737826249481,0.03,255.87,255.79,2.0]
[1737826249888,0.03,255.87,255.85,1.0]
[1737826250101,11.67748841,255.86,255.79,2.0]
[1737826250311,0.03,255.87,255.81,1.0]
[1737826250485,20.03,255.87,255.81,1.0]
[1737826251404,20.03,255.87,255.82,1.0]
[1737826251699,11.67748841,255.83,255.82,1.0]
[1737826251880,11.67748841,255.83,255.82,24.776884]
[1737826252080,11.67748841,255.85,255.84,24.776884]
[1737826252282,11.67748841,255.85,255.84,25.776884]
[1737826252993,11.67748841,255.85,255.84,2.0]
[1737826256407,11.67748841,255.85,255.84,2.063]
[1737826256909,0.03,255.87,255.85,23.776884]
[1737826256910,11.70748841,255.87,255.85,23.776884]
[1737826257109,11.70748841,255.87,255.86,1.0]
[1737826257312,11.70748841,255.87,255.86,2.0]
[1737826257526,0.03,255.87,255.86,25.776884]
[1737826258996,0.03,255.87,255.86,2.0]
[1737826259205,0.03,255.87,255.86,1.0]
[1737826259397,0.03,255.87,255.86,2.0]
[1737826260490,0.03,255.87,255.86,25.776884]
[1737826261112,0.03,255.87,255.86,2.0]
[1737826261308,0.03,255.87,255.85,1.0]
[1737826261525,0.03,255.87,255.84,0.063]
[1737826261526,11.67748841,255.86,255.84,0.063]
[1737826261823,2.7359,255.85,255.84,1.063]
[1737826263022,2.7359,255.85,255.84,0.063]
[1737826265104,2.7359,255.85,255.76,2.0]
[1737826265105,20.0,255.82,255.76,2.0]
[1737826265433,11.67748841,255.77,255.76,1.0]
[1737826265600,11.67748841,255.77,255.73,1.0]
[1737826265795,11.67748841,255.74,255.71,2.063]
[1737826266024,11.67748841,255.78,255.71,2.063]
[1737826266025,11.67748841,255.72,255.71,0.063]
[1737826266913,1.5061,255.81,255.71,0.063]
[1737826266914,11.67748841,255.74,255.71,0.063]
[1737826267095,11.67748841,255.74,255.73,1.0]
[1737826267300,11.67748841,255.76,255.75,2.0]
[1737826267822,11.67748841,255.76,255.75,1.0]
[1737826268722,11.67748841,255.76,255.75,25.776884]
[1737826268927,11.67748841,255.8,255.79,2.0]
[1737826269324,11.67748841,255.8,255.77,2.0]
[1737826269520,11.67748841,255.78,255.71,2.063]
[1737826269706,11.67748841,255.72,255.71,1.063]
[1737826270713,11.67748841,255.72,255.71,0.063]
[1737826270909,14.41478841,255.72,255.71,0.063]
[1737826271730,11.67748841,255.72,255.71,2.063]
[1737826272028,11.67748841,255.76,255.75,2.0]
[1737826272624,11.67748841,255.78,255.75,2.0]
[1737826272930,11.67748841,255.78,255.77,2.0]
[1737826273234,11.67748841,255.8,255.79,2.0]
[1737826273828,11.67748841,255.8,255.75,1.0]
[1737826274015,11.67748841,255.76,255.75,1.0]
[1737826274622,11.67748841,255.76,255.73,1.0]
[1737826274824,11.67748841,255.74,255.73,1.0]
[1737826275017,14.41458841,255.74,255.73,1.0]
[1737826276834,21.25738841,255.74,255.66,0.063]
[1737826277138,21.25738841,255.74,255.58,1.063]
[1737826277139,11.67748841,255.67,255.58,1.063]
[1737826277337,11.67748841,255.61,255.58,1.063]
[1737826278138,14.41598841,255.61,255.58,1.063]
[1737826279026,14.41598841,255.61,255.6,1.063]
[1737826279225,14.41598841,255.61,255.6,0.063]
[1737826279413,14.41598841,255.61,255.6,1.063]
[1737826279611,14.41598841,255.61,255.6,0.063]
[1737826279831,21.45103132,255.61,255.6,0.063]
[1737826280115,18.71766963,255.61,255.6,0.063]
[1737826281112,18.71766963,255.61,255.6,1.063]
[1737826282728,18.71766963,255.61,255.6,0.063]
[1737826283030,18.71766963,255.61,255.6,1.063]
[1737826283417,18.71766963,255.61,255.6,24.839884]
[1737826283620,18.71766963,255.61,255.6,1.063]
[1737826284033,18.71766963,255.61,255.6,0.063]
[1737826285029,18.71629218,255.61,255.6,0.063]
[1737826285635,38.71629218,255.61,255.6,0.063]
[1737826287633,38.71629218,255.61,255.6,0.0001]
[1737826291023,38.71629218,255.61,255.5,1.0]
[1737826291024,20.0,255.57,255.5,1.0]
[1737826291215,18.71629218,255.51,255.47,1.0]
[1737826291429,18.71629218,255.48,255.47,1.0]
[1737826292447,21.45619218,255.48,255.47,1.0]
[1737826293430,21.45619218,255.48,255.45,0.063]
[1737826293732,18.71629218,255.46,255.45,0.063]
[1737826293926,18.71629218,255.46,255.45,1.063]
[1737826294123,18.71629218,255.46,255.45,0.063]
[1737826294335,21.45639218,255.46,255.45,0.063]
[1737826295119,21.45639218,255.46,255.45,1.063]
[1737826295324,21.45639218,255.46,255.45,0.063]
[1737826296545,21.45639218,255.46,255.44,1.063]
[1737826296546,28.30669218,255.46,255.4,0.063]
[1737826296860,9.5904,255.46,255.41,1.0]
[1737826297528,9.5904,255.46,255.4,0.063]
[1737826298355,18.71629218,255.41,255.4,0.063]
[1737826298936,18.71629218,255.41,255.4,1.063]
[1737826299368,18.71629218,255.43,255.42,1.0]
[1737826300160,18.71629218,255.43,255.33,1.0]
[1737826300330,9.5893,255.49,255.44,1.0]
[1737826301035,20.0,255.46,255.44,1.0]
[1737826301951,20.0,255.46,255.39,1.0]
[1737826302157,11.70931258,255.4,255.39,1.0]
[1737826302760,14.45001258,255.4,255.39,1.0]
[1737826302953,14.45001258,255.4,255.37,1.0]
[1737826303136,11.70931258,255.38,255.37,1.0]
[1737826304135,11.70931258,255.38,255.34,1.063]
[1737826304337,11.70931258,255.37,255.36,1.0]
[1737826304838,11.70931258,255.39,255.38,1.0]
[1737826305543,11.70931258,255.43,255.42,1.0]
[1737826306363,6.8498,255.48,255.42,1.0]
[1737826306364,31.70931258,255.45,255.42,1.0]
[1737826306569,11.70931258,255.43,255.42,1.0]
[1737826306933,14.44971258,255.43,255.4,1.0]
[1737826307135,11.70931258,255.41,255.37,1.063]
[1737826307379,11.70931258,255.38,255.37,1.063]
[1737826309140,11.70931258,255.42,255.41,1.0]
[1737826309340,11.70931258,255.44,255.43,1.0]
[1737826312865,20.0,255.41,255.37,1.063]
[1737826313070,11.70931258,255.38,255.37,1.063]
[1737826314941,14.45031258,255.38,255.37,1.063]
[1737826315465,11.70931258,255.38,255.37,1.063]
[1737826317263,14.45011258,255.4,255.37,1.063]
[1737826317464,11.70931258,255.4,255.33,23.776884]
[1737826318643,11.70931258,255.37,255.3,7.8234]
[1737826319266,11.70931258,255.37,255.31,23.776884]
[1737826320377,11.70931258,255.33,255.3,7.8234]
[1737826320851,11.70931258,255.31,255.3,1.5091]
[1737826321052,11.70931258,255.31,255.25,0.063]
[1737826321053,11.70931258,255.31,255.25,23.839884]
[1737826321849,11.70931258,255.31,255.25,27.757584]
[1737826322266,11.70931258,255.33,255.25,27.757584]
[1737826322653,11.70931258,255.33,255.26,0.38310681]
[1737826322971,11.70931258,255.35,255.26,0.38310681]